[Event "*** Titled Tuesday 3|2 Blitz"]
[Site "Chess.com"]
[Date "2016.07.05"]
[Round "9"]
[White "Abrito99"]
[Black "Smirnov_Pavel"]
[Result "1-0"]
[WhiteElo "2359"]
[BlackElo "2536"]
[TimeControl "180+2"]
[EndTime "12:54:48 PDT"]
[Termination "Abrito99 won on time"]

1. e4 {[%clk 0:03:01.9]} 1... c5 {[%clk 0:02:58.9]} 2. d4 {[%clk 0:03:00.9]}
2... cxd4 {[%clk 0:02:58.3]} 3. c3 {[%clk 0:03:02.4]} 3... dxc3 {[%clk
0:02:56.3]} 4. Nxc3 {[%clk 0:03:04.3]} 4... Nc6 {[%clk 0:02:57.2]} 5. Nf3 {[%clk
0:03:05.9]} 5... d6 {[%clk 0:02:56.4]} 6. Bc4 {[%clk 0:03:06.8]} 6... e6 {[%clk
0:02:57.3]} 7. O-O {[%clk 0:03:07.2]} 7... Nf6 {[%clk 0:02:58.2]} 8. Qe2 {[%clk
0:03:08.1]} 8... a6 {[%clk 0:02:59.2]} 9. Rd1 {[%clk 0:03:08.9]} 9... Qc7 {[%clk
0:02:58.6]} 10. Bf4 {[%clk 0:03:08.2]} 10... Ne5 {[%clk 0:02:57.7]} 11. Bb5+
{[%clk 0:02:31]} 11... axb5 {[%clk 0:02:50.8]} 12. Nxe5 {[%clk 0:02:25.3]} 12...
dxe5 {[%clk 0:02:00.1]} 13. Nxb5 {[%clk 0:02:26.2]} 13... Qb8 {[%clk 0:01:41.3]}
14. Qc4 {[%clk 0:02:26]} 14... Be7 {[%clk 0:01:31.7]} 15. Bxe5 {[%clk
0:02:20.1]} 15... Qxe5 {[%clk 0:01:21.5]} 16. Nc7+ {[%clk 0:02:21.2]} 16... Kf8
{[%clk 0:01:21.9]} 17. Nxa8 {[%clk 0:02:21.5]} 17... g5 {[%clk 0:00:58.5]} 18.
Qxc8+ {[%clk 0:02:14]} 18... Kg7 {[%clk 0:00:58.2]} 19. Qc7 {[%clk 0:02:09.3]}
19... Qxe4 {[%clk 0:00:58.7]} 20. Qxe7 {[%clk 0:02:09.8]} 20... Rxa8 {[%clk
0:00:58.9]} 21. a3 {[%clk 0:02:04.8]} 21... Ra5 {[%clk 0:00:56.3]} 22. Rac1
{[%clk 0:02:00.5]} 22... Rb5 {[%clk 0:00:52.5]} 23. Rc7 {[%clk 0:01:55.2]} 23...
Qg6 {[%clk 0:00:48.6]} 24. Rc8 {[%clk 0:01:49.4]} 24... Qe4 {[%clk 0:00:40.2]}
25. Rc7 {[%clk 0:01:47.3]} 25... Qg6 {[%clk 0:00:40.5]} 26. Qxe6 {[%clk
0:01:42.4]} 26... Rxb2 {[%clk 0:00:19.1]} 27. Qe5 {[%clk 0:01:43.6]} 27... Rb6
{[%clk 0:00:17]} 28. h3 {[%clk 0:01:43.1]} 28... Ra6 {[%clk 0:00:13.9]} 29. Rdd7
{[%clk 0:01:43.1]} 29... Rxa3 {[%clk 0:00:12.2]} 30. Rxf7+ {[%clk 0:01:43.5]}
30... Qxf7 {[%clk 0:00:12.9]} 31. Qxg5+ {[%clk 0:01:44.2]} 31... Kf8 {[%clk
0:00:13.5]} 32. Qc5+ {[%clk 0:01:43]} 32... Kg8 {[%clk 0:00:11.4]} 33. Rxf7
{[%clk 0:01:44.3]} 33... Ra1+ {[%clk 0:00:12]} 34. Kh2 {[%clk 0:01:45.5]} 34...
Kxf7 {[%clk 0:00:13.1]} 35. Qc7+ {[%clk 0:01:46.2]} 35... Kg6 {[%clk 0:00:14.2]}
36. Qxb7 {[%clk 0:01:47.7]} 36... h5 {[%clk 0:00:15.3]} 37. Qb4 {[%clk
0:01:43.2]} 37... Rd1 {[%clk 0:00:14]} 38. Qf4 {[%clk 0:01:41.3]} 38... Rd5
{[%clk 0:00:14.3]} 39. f3 {[%clk 0:01:38.9]} 39... Rf5 {[%clk 0:00:14.1]} 40.
Qg3+ {[%clk 0:01:39.6]} 40... Kf7 {[%clk 0:00:14.2]} 41. Qb8 {[%clk 0:01:41]}
41... h4 {[%clk 0:00:11.7]} 42. Qh8 {[%clk 0:01:41.1]} 42... Rh5 {[%clk
0:00:12.4]} 43. Qc8 {[%clk 0:01:41.6]} 43... Kg6 {[%clk 0:00:12.6]} 44. Qc2+
{[%clk 0:01:41.5]} 44... Kg7 {[%clk 0:00:12.9]} 45. Qc4 {[%clk 0:01:42.8]} 45...
Kg6 {[%clk 0:00:13.4]} 46. Qe6 {[%clk 0:01:42.9]} 46... Kg7 {[%clk 0:00:14.3]}
47. f4 {[%clk 0:01:43.7]} 47... Kg6 {[%clk 0:00:15]} 48. Kg1 {[%clk 0:01:43.5]}
48... Rf5 {[%clk 0:00:15.5]} 49. Qd6 {[%clk 0:01:41.6]} 49... Rd5 {[%clk
0:00:13.3]} 50. Qc6 {[%clk 0:01:37.8]} 50... Rf5 {[%clk 0:00:12.8]} 51. Qc2
{[%clk 0:01:38.9]} 51... Nh5 {[%clk 0:00:11]} 52. Qc6+ {[%clk 0:01:35.3]} 52...
Nf6 {[%clk 0:00:09.5]} 53. Qc7 {[%clk 0:01:35.7]} 53... Nd5 {[%clk 0:00:08.2]}
54. Qd6+ {[%clk 0:01:36.8]} 54... Nf6 {[%clk 0:00:08.6]} 55. Kf2 {[%clk
0:01:37.2]} 55... Kf7 {[%clk 0:00:08.3]} 56. Kf3 {[%clk 0:01:38]} 56... Kg6
{[%clk 0:00:08.9]} 57. Qd3 {[%clk 0:01:37.1]} 57... Nd5 {[%clk 0:00:04]} 58. Kg4
{[%clk 0:01:36.5]} 1-0

[Event "*** Titled Tuesday 3|2 Blitz"]
[Site "Chess.com"]
[Date "2016.07.05"]
[Round "9"]
[White "Cayse"]
[Black "ZapataCharlesS"]
[Result "1-0"]
[WhiteElo "2579"]
[BlackElo "2473"]
[TimeControl "180+2"]
[EndTime "12:54:57 PDT"]
[Termination "Cayse won by resignation"]

1. e4 {[%clk 0:02:55.4]} 1... c5 {[%clk 0:02:56.7]} 2. Nf3 {[%clk 0:02:55]} 2...
d6 {[%clk 0:02:57]} 3. Bb5+ {[%clk 0:02:55.5]} 3... Bd7 {[%clk 0:02:56.2]} 4.
Bxd7+ {[%clk 0:02:56.2]} 4... Qxd7 {[%clk 0:02:57.4]} 5. c4 {[%clk 0:02:56.8]}
5... Nc6 {[%clk 0:02:56.3]} 6. d4 {[%clk 0:02:46.9]} 6... cxd4 {[%clk
0:02:54.1]} 7. Nxd4 {[%clk 0:02:47.6]} 7... Nf6 {[%clk 0:02:55.4]} 8. Nc3 {[%clk
0:02:48.1]} 8... Qg4 {[%clk 0:02:53.8]} 9. Qxg4 {[%clk 0:02:46.5]} 9... Nxg4
{[%clk 0:02:54.5]} 10. Nxc6 {[%clk 0:02:42.8]} 10... bxc6 {[%clk 0:02:56.4]} 11.
Ke2 {[%clk 0:02:43.5]} 11... g6 {[%clk 0:02:55.6]} 12. f3 {[%clk 0:02:42.5]}
12... Ne5 {[%clk 0:02:56.1]} 13. b3 {[%clk 0:02:43.2]} 13... Bg7 {[%clk
0:02:57.1]} 14. Bd2 {[%clk 0:02:44.2]} 14... O-O {[%clk 0:02:50.5]} 15. Rac1
{[%clk 0:02:44.8]} 15... a5 {[%clk 0:02:47.1]} 16. Be3 {[%clk 0:02:44.6]} 16...
c5 {[%clk 0:02:40.7]} 17. Na4 {[%clk 0:02:32.4]} 17... Rfb8 {[%clk 0:02:40.5]}
18. Rhd1 {[%clk 0:02:32.5]} 18... Nc6 {[%clk 0:02:39.9]} 19. f4 {[%clk
0:02:33.3]} 19... Nd4+ {[%clk 0:02:38.9]} 20. Kf2 {[%clk 0:02:27.4]} 20... e6
{[%clk 0:02:37.2]} 21. Rd3 {[%clk 0:02:15.2]} 21... e5 {[%clk 0:02:27.2]} 22.
Bxd4 {[%clk 0:02:05.6]} 22... exd4 {[%clk 0:02:24.4]} 23. Kf3 {[%clk 0:02:06.6]}
23... Rb4 {[%clk 0:02:16.8]} 24. Rd2 {[%clk 0:02:04]} 24... Re8 {[%clk
0:02:12.4]} 25. Re2 {[%clk 0:02:03.7]} 25... f6 {[%clk 0:02:13.8]} 26. Rd1
{[%clk 0:01:50.3]} 26... Kf7 {[%clk 0:02:12.1]} 27. g4 {[%clk 0:01:47.3]} 27...
h6 {[%clk 0:02:10.9]} 28. h4 {[%clk 0:01:47.3]} 28... g5 {[%clk 0:02:12.5]} 29.
f5 {[%clk 0:01:43.8]} 29... Re7 {[%clk 0:02:07.3]} 30. Nb2 {[%clk 0:01:42.5]}
30... Rb8 {[%clk 0:02:01.9]} 31. Rh1 {[%clk 0:01:41.3]} 31... Ra8 {[%clk
0:02:00.5]} 32. Nd3 {[%clk 0:01:29.4]} 32... a4 {[%clk 0:02:00.2]} 33. b4 {[%clk
0:01:30.3]} 33... cxb4 {[%clk 0:01:56.4]} 34. Nxb4 {[%clk 0:01:32.2]} 34... Rb7
{[%clk 0:01:52.4]} 35. Nd3 {[%clk 0:01:29.1]} 35... a3 {[%clk 0:01:52.7]} 36.
hxg5 {[%clk 0:01:11.1]} 36... hxg5 {[%clk 0:01:54.6]} 37. Rc2 {[%clk 0:01:05.3]}
37... Rc8 {[%clk 0:01:53.5]} 38. Rd1 {[%clk 0:00:56.1]} 38... Rh8 {[%clk
0:01:54.2]} 39. Nf2 {[%clk 0:00:55.9]} 39... Rb2 {[%clk 0:01:51.5]} 40. Re2
{[%clk 0:00:53.3]} 40... Bf8 {[%clk 0:01:46.1]} 41. Rxd4 {[%clk 0:00:52.2]}
41... Be7 {[%clk 0:01:46.9]} 42. Rdd2 {[%clk 0:00:52.5]} 42... Rb1 {[%clk
0:01:43.3]} 43. Rd3 {[%clk 0:00:48.6]} 43... Ra8 {[%clk 0:01:28.1]} 44. Nd1
{[%clk 0:00:49.2]} 44... Rh8 {[%clk 0:01:01]} 45. Kg2 {[%clk 0:00:49.1]} 45...
Rh4 {[%clk 0:00:59.2]} 46. Nf2 {[%clk 0:00:48.2]} 46... Rh8 {[%clk 0:00:59.9]}
47. Rxa3 {[%clk 0:00:47.8]} 47... d5 {[%clk 0:00:57.6]} 48. Ra7 {[%clk
0:00:48.6]} 48... dxc4 {[%clk 0:00:58.5]} 49. e5 {[%clk 0:00:49.1]} 49... fxe5
{[%clk 0:00:46.6]} 50. Rxe5 {[%clk 0:00:41]} 50... Re8 {[%clk 0:00:48.5]} 51.
Ne4 {[%clk 0:00:39.3]} 51... Kf8 {[%clk 0:00:49.8]} 52. f6 {[%clk 0:00:39.6]}
52... Bb4 {[%clk 0:00:46.7]} 53. Rxe8+ {[%clk 0:00:34]} 53... Kxe8 {[%clk
0:00:48.6]} 54. Nxg5 {[%clk 0:00:34.8]} 54... Rg1+ {[%clk 0:00:37.6]} 55. Kxg1
{[%clk 0:00:32.3]} 55... Bc5+ {[%clk 0:00:39.1]} 56. Kf1 {[%clk 0:00:33.6]}
56... Bxa7 {[%clk 0:00:41]} 57. Ke2 {[%clk 0:00:32.5]} 57... Bd4 {[%clk
0:00:39.2]} 58. f7+ {[%clk 0:00:33.2]} 58... Ke7 {[%clk 0:00:40.1]} 59. f8=Q+
{[%clk 0:00:34]} 1-0

[Event "*** Titled Tuesday 3|2 Blitz"]
[Site "Chess.com"]
[Date "2016.07.05"]
[Round "9"]
[White "Usurpov"]
[Black "theprosecution1"]
[Result "0-1"]
[WhiteElo "2353"]
[BlackElo "2527"]
[TimeControl "180+2"]
[EndTime "12:55:04 PDT"]
[Termination "theprosecution1 won by resignation"]

1. e4 {[%clk 0:03:01.9]} 1... c5 {[%clk 0:02:28.6]} 2. Nf3 {[%clk 0:03:02.3]}
2... d6 {[%clk 0:02:29.7]} 3. Bb5+ {[%clk 0:03:02.7]} 3... Nd7 {[%clk
0:02:28.8]} 4. d4 {[%clk 0:03:01.2]} 4... cxd4 {[%clk 0:02:29.7]} 5. Qxd4 {[%clk
0:03:03.1]} 5... a6 {[%clk 0:02:30.1]} 6. Bxd7+ {[%clk 0:03:03.6]} 6... Bxd7
{[%clk 0:02:32]} 7. Nc3 {[%clk 0:03:05]} 7... Rc8 {[%clk 0:02:27.6]} 8. Bg5
{[%clk 0:03:03.8]} 8... h6 {[%clk 0:02:17.6]} 9. Be3 {[%clk 0:03:02]} 9... e5
{[%clk 0:02:16]} 10. Qd2 {[%clk 0:03:02.3]} 10... Nf6 {[%clk 0:02:16.6]} 11. a4
{[%clk 0:02:47.1]} 11... Qa5 {[%clk 0:02:10]} 12. O-O {[%clk 0:02:42]} 12...
Rxc3 {[%clk 0:02:02.2]} 13. Qxc3 {[%clk 0:02:39]} 13... Qxc3 {[%clk 0:02:02.9]}
14. bxc3 {[%clk 0:02:40.9]} 14... Nxe4 {[%clk 0:02:04.8]} 15. c4 {[%clk
0:02:36]} 15... Be7 {[%clk 0:02:06.4]} 16. Nd2 {[%clk 0:02:26.3]} 16... Nxd2
{[%clk 0:02:07.2]} 17. Bxd2 {[%clk 0:02:28.2]} 17... f5 {[%clk 0:02:08.4]} 18.
Rfd1 {[%clk 0:02:20.2]} 18... Kf7 {[%clk 0:02:06.6]} 19. Bb4 {[%clk 0:02:16]}
19... Ke6 {[%clk 0:02:07.4]} 20. Ra3 {[%clk 0:02:00.8]} 20... Bc6 {[%clk
0:01:59.4]} 21. a5 {[%clk 0:01:56.3]} 21... f4 {[%clk 0:01:59.4]} 22. Rad3
{[%clk 0:01:55.3]} 22... Rd8 {[%clk 0:01:53.6]} 23. f3 {[%clk 0:01:54.3]} 23...
g5 {[%clk 0:01:51.6]} 24. Kf2 {[%clk 0:01:48.3]} 24... h5 {[%clk 0:01:51.7]} 25.
h3 {[%clk 0:01:47.9]} 25... g4 {[%clk 0:01:48.1]} 26. hxg4 {[%clk 0:01:48.1]}
26... hxg4 {[%clk 0:01:50]} 27. Rh1 {[%clk 0:01:48.7]} 27... g3+ {[%clk
0:01:46.3]} 28. Ke2 {[%clk 0:01:47.1]} 28... e4 {[%clk 0:01:39.7]} 29. Rh6+
{[%clk 0:01:26.3]} 29... Kf5 {[%clk 0:01:34.3]} 30. fxe4+ {[%clk 0:01:10.8]}
30... Bxe4 {[%clk 0:01:36.2]} 31. Rh7 {[%clk 0:01:08.4]} 31... Bf6 {[%clk
0:01:13.5]} 32. Rf7 {[%clk 0:00:38.1]} 32... Ke6 {[%clk 0:01:06.6]} 33. Rxf6+
{[%clk 0:00:35.8]} 33... Kxf6 {[%clk 0:01:07.2]} 34. Rxd6+ {[%clk 0:00:37.5]}
34... Rxd6 {[%clk 0:01:07.5]} 35. Bxd6 {[%clk 0:00:39.4]} 35... Kf5 {[%clk
0:01:08.7]} 36. Kf1 {[%clk 0:00:38.4]} 36... Bxc2 {[%clk 0:01:08.2]} 37. Bc7
{[%clk 0:00:37.6]} 37... Bd3+ {[%clk 0:01:08.4]} 38. Ke1 {[%clk 0:00:37.2]}
38... Bxc4 {[%clk 0:01:10.3]} 39. Bb6 {[%clk 0:00:35.3]} 39... Ke4 {[%clk
0:01:04.7]} 40. Bc5 {[%clk 0:00:23.7]} 40... Bd5 {[%clk 0:00:59.2]} 41. Bb6
{[%clk 0:00:24.4]} 41... Bc4 {[%clk 0:00:57]} 42. Bc5 {[%clk 0:00:24.8]} 42...
Bb5 {[%clk 0:00:57.8]} 43. Bb6 {[%clk 0:00:25.4]} 43... Bc6 {[%clk 0:00:36]} 44.
Kf1 {[%clk 0:00:25.5]} 44... Kf5 {[%clk 0:00:30.7]} 45. Kg1 {[%clk 0:00:25.4]}
45... Kg4 {[%clk 0:00:32]} 46. Bc7 {[%clk 0:00:26.1]} 46... Be4 {[%clk
0:00:23.3]} 47. Bb6 {[%clk 0:00:27]} 47... Bc6 {[%clk 0:00:10.3]} 48. Kf1 {[%clk
0:00:27.3]} 48... Kf5 {[%clk 0:00:12.2]} 49. Kg1 {[%clk 0:00:28.1]} 49... Ke4
{[%clk 0:00:14.1]} 50. Kf1 {[%clk 0:00:28.3]} 50... Kd3 {[%clk 0:00:15.6]} 51.
Ke1 {[%clk 0:00:28.5]} 51... Bxg2 {[%clk 0:00:16]} 52. Bc7 {[%clk 0:00:29.8]}
52... Ke4 {[%clk 0:00:17.4]} 53. Ke2 {[%clk 0:00:29.8]} 53... Bf3+ {[%clk
0:00:18.4]} 54. Kf1 {[%clk 0:00:31.2]} 54... Bg4 {[%clk 0:00:20.3]} 55. Kg1
{[%clk 0:00:32]} 55... Bd7 {[%clk 0:00:21.3]} 56. Kf1 {[%clk 0:00:32.8]} 56...
Bb5+ {[%clk 0:00:22.2]} 57. Kg1 {[%clk 0:00:34.2]} 57... Bc6 {[%clk 0:00:23.7]}
58. Bb8 {[%clk 0:00:35.4]} 58... Kf5 {[%clk 0:00:25]} 59. Bc7 {[%clk 0:00:36.6]}
59... Kg4 {[%clk 0:00:26.4]} 60. Bb8 {[%clk 0:00:37.8]} 60... f3 {[%clk
0:00:28]} 0-1

[Event "*** Titled Tuesday 3|2 Blitz"]
[Site "Chess.com"]
[Date "2016.07.05"]
[Round "9"]
[White "WanderingPuppet"]
[Black "PowerThinking2650"]
[Result "0-1"]
[WhiteElo "2272"]
[BlackElo "2162"]
[TimeControl "180+2"]
[EndTime "12:55:09 PDT"]
[Termination "PowerThinking2650 won by resignation"]

1. e4 {[%clk 0:03:01.9]} 1... e5 {[%clk 0:03:00.7]} 2. Nf3 {[%clk 0:02:56.9]}
2... Nc6 {[%clk 0:03:01.9]} 3. Bb5 {[%clk 0:02:58.5]} 3... a6 {[%clk 0:03:02.9]}
4. Ba4 {[%clk 0:02:58.7]} 4... Nf6 {[%clk 0:03:03.4]} 5. O-O {[%clk 0:02:59.3]}
5... Be7 {[%clk 0:03:04.7]} 6. Re1 {[%clk 0:02:56.8]} 6... b5 {[%clk 0:03:05.8]}
7. Bb3 {[%clk 0:02:58.5]} 7... d6 {[%clk 0:03:07.2]} 8. c3 {[%clk 0:02:59.3]}
8... O-O {[%clk 0:03:07]} 9. h3 {[%clk 0:03:01]} 9... Bb7 {[%clk 0:03:04.8]} 10.
d4 {[%clk 0:03:01.5]} 10... Re8 {[%clk 0:03:05.4]} 11. Nbd2 {[%clk 0:03:01.6]}
11... Bf8 {[%clk 0:03:05.7]} 12. Bc2 {[%clk 0:02:37.1]} 12... h6 {[%clk
0:02:49.6]} 13. a3 {[%clk 0:02:36.6]} 13... Nb8 {[%clk 0:02:47.5]} 14. Qe2
{[%clk 0:02:26.1]} 14... Nbd7 {[%clk 0:02:45.7]} 15. d5 {[%clk 0:02:19.1]} 15...
c6 {[%clk 0:02:46]} 16. c4 {[%clk 0:02:20.2]} 16... bxc4 {[%clk 0:02:43.6]} 17.
dxc6 {[%clk 0:02:20.5]} 17... Bxc6 {[%clk 0:02:44.4]} 18. Nxc4 {[%clk
0:02:21.2]} 18... a5 {[%clk 0:02:36.7]} 19. Bd2 {[%clk 0:02:02.2]} 19... a4
{[%clk 0:02:25.7]} 20. Rad1 {[%clk 0:01:50.8]} 20... Nc5 {[%clk 0:02:16.8]} 21.
Bc3 {[%clk 0:01:38.6]} 21... Qc7 {[%clk 0:02:03]} 22. Qe3 {[%clk 0:01:17.4]}
22... Bxe4 {[%clk 0:01:52.7]} 23. Bxe4 {[%clk 0:01:10.6]} 23... Ncxe4 {[%clk
0:01:46.9]} 24. Nb6 {[%clk 0:01:05.8]} 24... Ra6 {[%clk 0:01:36.8]} 25. Nd5
{[%clk 0:01:02.3]} 25... Nxd5 {[%clk 0:01:34.3]} 26. Rxd5 {[%clk 0:01:01.6]}
26... Nxc3 {[%clk 0:01:32.5]} 27. bxc3 {[%clk 0:00:57.5]} 27... Rb8 {[%clk
0:01:27]} 28. Qd3 {[%clk 0:00:53.1]} 28... Rc6 {[%clk 0:01:25]} 29. Qd1 {[%clk
0:00:44.4]} 29... Rb3 {[%clk 0:01:20.3]} 30. Nh4 {[%clk 0:00:45.4]} 30... g6
{[%clk 0:01:16.3]} 31. Qg4 {[%clk 0:00:45.9]} 31... Rc4 {[%clk 0:01:07.1]} 32.
Qg3 {[%clk 0:00:35]} 32... Rbxc3 {[%clk 0:01:05.1]} 33. f3 {[%clk 0:00:34.6]}
33... Qa7+ {[%clk 0:01:00]} 34. Kh2 {[%clk 0:00:35]} 34... Rc1 {[%clk 0:00:48]}
35. Nxg6 {[%clk 0:00:30.6]} 35... fxg6 {[%clk 0:00:46.2]} 36. Qxg6+ {[%clk
0:00:31.1]} 36... Qg7 {[%clk 0:00:46.5]} 37. Rxc1 {[%clk 0:00:12.3]} 37... Rxc1
{[%clk 0:00:41.4]} 38. Qd3 {[%clk 0:00:02.4]} 38... Rc7 {[%clk 0:00:24.3]} 39.
Qd2 {[%clk 0:00:03.4]} 39... Qg5 {[%clk 0:00:21.7]} 40. f4 {[%clk 0:00:04.2]}
40... Qxf4+ {[%clk 0:00:21.8]} 41. Qxf4 {[%clk 0:00:05.8]} 41... exf4 {[%clk
0:00:23.1]} 42. Rd4 {[%clk 0:00:07.4]} 42... Ra7 {[%clk 0:00:21.1]} 43. Rxf4
{[%clk 0:00:07.8]} 43... Bg7 {[%clk 0:00:22.1]} 44. Kg1 {[%clk 0:00:06.6]} 44...
d5 {[%clk 0:00:22.7]} 45. Kf1 {[%clk 0:00:07.2]} 45... Rf7 {[%clk 0:00:22.7]}
46. Rxf7 {[%clk 0:00:06.7]} 46... Kxf7 {[%clk 0:00:24.2]} 47. Ke2 {[%clk
0:00:08.6]} 47... Ke6 {[%clk 0:00:25.5]} 48. Kd3 {[%clk 0:00:10.5]} 48... Kd6
{[%clk 0:00:25.9]} 49. g4 {[%clk 0:00:12.4]} 49... Kc5 {[%clk 0:00:26.8]} 50. h4
{[%clk 0:00:14.3]} 50... Bf6 {[%clk 0:00:27.3]} 51. g5 {[%clk 0:00:16.2]} 51...
hxg5 {[%clk 0:00:28]} 52. hxg5 {[%clk 0:00:18.1]} 0-1

[Event "*** Titled Tuesday 3|2 Blitz"]
[Site "Chess.com"]
[Date "2016.07.05"]
[Round "9"]
[White "Ksenia_Legenko"]
[Black "Blitzstream"]
[Result "1-0"]
[WhiteElo "2080"]
[BlackElo "2445"]
[TimeControl "180+2"]
[EndTime "12:55:57 PDT"]
[Termination "Ksenia_Legenko won by resignation"]

1. d4 {[%clk 0:03:01.6]} 1... d5 {[%clk 0:03:00.7]} 2. c4 {[%clk 0:03:02.5]}
2... c6 {[%clk 0:03:02.6]} 3. Nf3 {[%clk 0:03:02.8]} 3... Nf6 {[%clk 0:03:04.1]}
4. g3 {[%clk 0:03:03.8]} 4... g6 {[%clk 0:03:04.4]} 5. Bg2 {[%clk 0:03:04.5]}
5... Bg7 {[%clk 0:03:06.1]} 6. O-O {[%clk 0:03:06.1]} 6... O-O {[%clk
0:03:07.7]} 7. Nc3 {[%clk 0:03:07.6]} 7... dxc4 {[%clk 0:03:08.3]} 8. Ne5 {[%clk
0:03:01]} 8... Nbd7 {[%clk 0:03:07.7]} 9. Nxc4 {[%clk 0:03:01.4]} 9... Nb6
{[%clk 0:03:08.6]} 10. Ne5 {[%clk 0:02:46.6]} 10... Nbd5 {[%clk 0:03:09.3]} 11.
e4 {[%clk 0:02:37.3]} 11... Nxc3 {[%clk 0:03:10.2]} 12. bxc3 {[%clk 0:02:37.8]}
12... c5 {[%clk 0:03:11.9]} 13. Be3 {[%clk 0:02:29.8]} 13... Nd7 {[%clk
0:03:12]} 14. Nd3 {[%clk 0:02:13.2]} 14... Qa5 {[%clk 0:03:10.1]} 15. Qc2 {[%clk
0:01:45.5]} 15... cxd4 {[%clk 0:03:09.8]} 16. cxd4 {[%clk 0:01:44.8]} 16... Nb6
{[%clk 0:03:11.2]} 17. Nc5 {[%clk 0:01:37.6]} 17... Nd7 {[%clk 0:03:10.7]} 18.
Nb3 {[%clk 0:01:31.8]} 18... Qh5 {[%clk 0:03:10.9]} 19. Rac1 {[%clk 0:01:21.7]}
19... Nf6 {[%clk 0:03:11.2]} 20. Qc5 {[%clk 0:01:09.3]} 20... Qg4 {[%clk
0:02:45]} 21. e5 {[%clk 0:00:55.7]} 21... Ne4 {[%clk 0:02:13.2]} 22. Qd5 {[%clk
0:00:35]} 22... Bf5 {[%clk 0:01:59.6]} 23. f3 {[%clk 0:00:33.6]} 23... Qh5
{[%clk 0:02:01.3]} 24. fxe4 {[%clk 0:00:28.9]} 24... Be6 {[%clk 0:02:02.7]} 25.
Qb5 {[%clk 0:00:24.7]} 25... b6 {[%clk 0:01:58.8]} 26. Bf3 {[%clk 0:00:24.2]}
26... Qh3 {[%clk 0:01:58.8]} 27. Qe2 {[%clk 0:00:22.9]} 27... a5 {[%clk
0:01:57.6]} 28. Bg2 {[%clk 0:00:18.4]} 28... Qg4 {[%clk 0:01:58.3]} 29. Qxg4
{[%clk 0:00:15.2]} 29... Bxg4 {[%clk 0:02:00.2]} 30. Bf3 {[%clk 0:00:09.9]}
30... Bh3 {[%clk 0:01:58.5]} 31. Rfd1 {[%clk 0:00:10.6]} 31... a4 {[%clk
0:02:00]} 32. Nd2 {[%clk 0:00:11.1]} 32... b5 {[%clk 0:02:01.6]} 33. Nb1 {[%clk
0:00:11.7]} 33... b4 {[%clk 0:02:02.5]} 34. Rc4 {[%clk 0:00:11.6]} 34... Rfb8
{[%clk 0:02:03.4]} 35. Kf2 {[%clk 0:00:12.1]} 35... b3 {[%clk 0:02:04.2]} 36.
axb3 {[%clk 0:00:12.9]} 36... a3 {[%clk 0:02:02.6]} 37. Nd2 {[%clk 0:00:09.6]}
37... Be6 {[%clk 0:02:00.5]} 38. Rcc1 {[%clk 0:00:10.1]} 38... a2 {[%clk
0:01:55.2]} 39. d5 {[%clk 0:00:09.9]} 39... Bxe5 {[%clk 0:01:44.2]} 40. dxe6
{[%clk 0:00:09]} 40... fxe6 {[%clk 0:01:45.8]} 41. Ra1 {[%clk 0:00:03.5]} 41...
Bb2 {[%clk 0:01:39.8]} 42. Ke2 {[%clk 0:00:03.9]} 42... e5 {[%clk 0:01:23.8]}
43. Bf2 {[%clk 0:00:04.5]} 43... Kg7 {[%clk 0:01:22.3]} 44. Bc5 {[%clk
0:00:04.9]} 44... e6 {[%clk 0:01:11.5]} 45. b4 {[%clk 0:00:06]} 45... Rd8 {[%clk
0:01:12.6]} 46. Rf1 {[%clk 0:00:04.1]} 46... Bc3 {[%clk 0:01:09.8]} 47. Nc4
{[%clk 0:00:05.1]} 47... Ra6 {[%clk 0:00:55.5]} 48. Rfc1 {[%clk 0:00:05.8]}
48... Bxa1 {[%clk 0:00:44.9]} 49. Rxa1 {[%clk 0:00:06.9]} 49... Rda8 {[%clk
0:00:46.8]} 50. Nxe5 {[%clk 0:00:07.3]} 50... Ra3 {[%clk 0:00:43.6]} 51. Nd3
{[%clk 0:00:08.2]} 51... Rb3 {[%clk 0:00:43.3]} 52. Bd4+ {[%clk 0:00:09]} 52...
Kg8 {[%clk 0:00:43.8]} 53. e5 {[%clk 0:00:08.4]} 53... Rb1 {[%clk 0:00:40.9]}
54. Bxa8 {[%clk 0:00:08]} 54... Rh1 {[%clk 0:00:32.5]} 55. Rxh1 {[%clk
0:00:07.9]} 1-0